Cogmind - Beta 10.2 @@@ ROGUE MODE // 2021.01.09 @ 15:51:07 Player: WayneKnight Result: Self-destructed Performance ------------- Evolutions (2) 1000 Regions Visited (5) 1000 Robots Destroyed (20) 100 Value Destroyed (466) 466 Prototype IDs (23) 460 Alien Tech Used (0) 0 Bonus (300) 300 TOTAL SCORE: 3326 Bonus ------- Aligned with FarCom 300 Cogmind --------- Core Integrity 550/550 Matter 260/300 Energy 125/125 System Corruption 0% Temperature Cool (0) Movement Walking (180) Ox2 Location -8/Materials Parts ------- > --- POWER (1) -------- Light Ion Engine > --- PROPULSION (3) --- Aluminum Leg Aluminum Leg Flexi-carbon Leg > --- UTILITY (5) ------ High-capacity Storage Unit High-capacity Storage Unit High-capacity Storage Unit Utility Shielding > --- WEAPON (2) ------- Beam Rifle Light Assault Rifle > --- INVENTORY (28) --- Light Ion Engine Light Treads Aluminum Leg Aluminum Leg Aluminum Leg Wheel Flying Fortress v7 Large Storage Unit Large Storage Unit Superbattery (2000) High-capacity Matter Pod (200) Datajack Hammer Peak State ------------ > --- POWER ------------ Light Ion Engine > --- PROPULSION ------- Aluminum Leg Aluminum Leg Flexi-carbon Leg > --- UTILITY ---------- High-capacity Storage Unit High-capacity Storage Unit High-capacity Storage Unit Utility Shielding > --- WEAPON ----------- Beam Rifle Light Assault Rifle > --- INVENTORY -------- Light Ion Engine Light Treads Aluminum Leg Aluminum Leg Aluminum Leg Wheel Flying Fortress v7 Large Storage Unit Large Storage Unit Superbattery High-capacity Matter Pod Datajack Hammer [Rating: 20] Favorites ----------- Power Ion Engine Engine Ion Engine Propulsion Light Treads Treads Light Treads Leg Flexi-carbon Leg Utility High-capacity Storage Unit Storage High-capacity Storage Unit Protection Utility Shielding Weapon Assault Rifle Energy Gun Beam Rifle Ballistic Gun Assault Rifle Special Melee Weapon Datajack Build | -11 -10 -10 -10 -9 -8 ------- Run | Scr Mat Min Exi Min Mat Slots Evolved 4 | . . . . . 4 Power . | . . . . . . Propulsion 1 | . . . . . 1 Utility 3 | . . . . . 3 Weapon . | . . . . . . Parts Attached 29 | 3 11 1 . 10 4 Power 2 | . . . . 1 1 Engine 2 | . . . . 1 1 Core . | . . . . . . Reactor . | . . . . . . Propulsion 6 | 2 . . . 3 1 Treads 3 | 2 . . . 1 . Leg 3 | . . . . 2 1 Wheel . | . . . . . . Hover . | . . . . . . Flight . | . . . . . . Utility 7 | 1 4 . . . 2 Device . | . . . . . . Storage 6 | 1 4 . . . 1 Processor . | . . . . . . Hackware . | . . . . . . Protection 1 | . . . . . 1 Artifact . | . . . . . . Weapon 14 | . 7 1 . 6 . Energy Gun 6 | . 2 . . 4 . Energy Cannon . | . . . . . . Ballistic Gun 6 | . 3 1 . 2 . Ballistic Cannon . | . . . . . . Launcher . | . . . . . . Special Weapon . | . . . . . . Impact Weapon . | . . . . . . Slashing Weapon . | . . . . . . Piercing Weapon . | . . . . . . Special Melee Weapon 2 | . 2 . . . . Unidentified Prototypes . | . . . . . . Parts Lost 9 | . . 1 . 8 . Power 1 | . . . . 1 . Propulsion 2 | . . . . 2 . Utility . | . . . . . . Weapon 6 | . . 1 . 5 . Highest Loss Streak 6 | . . 1 . 6 . Average Slot Usage (%) 97 | . 100 100 100 93 86 Engine 12 | . 14 14 14 8 7 Treads 25 | . 28 28 28 19 . Leg 2 | . . . . 8 25 Storage 27 | . 28 28 28 28 27 Energy Gun 13 | . 14 14 14 12 9 Ballistic Gun 13 | . 12 14 14 15 9 Naked Turns . | . . . . . . Heaviest Build 104 | 17 74 74 74 74 104 Greatest Support 40 | 40 40 40 40 40 40 Greatest Overweight (x) 3 | . 1 1 1 3 2 Average Overweight (x) 1 | . . 1 1 1 2 Largest Inventory Capacity 28 | 8 20 20 20 20 28 Average Capacity 17 | 7 10 20 20 20 27 Most Carried 20 | 6 15 15 18 20 19 Average Carried 14 | 6 9 14 15 18 16 Final Capacity 28 | 8 20 20 20 20 28 Final Carried 20 | 6 15 15 18 20 16 Class Distribution -------------------- 74% | Hauler-Mutant 25% | Mutant Dominant Class ---------------- Mutant | -10/Materials Hauler-Mutant | -10/Mines Hauler-Mutant | -10/Exiles Hauler-Mutant | -9/Mines Hauler-Mutant | -8/Materials Resources | -11 -10 -10 -10 -9 -8 ----------- Run | Scr Mat Min Exi Min Mat Matter Collected 843 | 236 101 70 . 436 . Remotely . | . . . . . . Salvage Created 761 | 67 272 52 . 370 . Parts 35 | 1 10 4 . 20 . Haulers Intercepted . | . . . . . . Recyclers Shooed . | . . . . . . Parts Field Recycled . | . . . . . . Retrieved Matter . | . . . . . . Parts Self-Destructed . | . . . . . . Prevented . | . . . . . . Kills | -11 -10 -10 -10 -9 -8 ------- Run | Scr Mat Min Exi Min Mat Combat Hostiles Destroyed 22 | . 5 3 . 14 . Melee 1 | . . . . 1 . Guns 21 | . 5 3 . 13 . Classes Destroyed 9 | 1 3 1 . 4 . Tunneler 1 | . . . . 1 . Recycler 1 | 1 . . . . . Operator 1 | . 1 . . . . Watcher 1 | . 1 . . . . Swarmer 6 | . . 3 . 3 . Grunt 8 | . 5 . . 3 . Brawler 1 | . . . . 1 . Demolisher 1 | . . . . 1 . Assembled 6 | . . . . 6 . Best Kill Streak 6 | 1 2 3 . 6 . Combat Bots Only 6 | . 2 3 . 6 . Max Kills in Single Turn 2 | 1 1 1 . 2 . Gunslinging . | . . . . . . Exploded . | . . . . . . Melee 1 | . . . . 1 . Uniques/NPCs Destroyed . | . . . . . . Combat | -11 -10 -10 -10 -9 -8 -------- Run | Scr Mat Min Exi Min Mat Damage Taken 1346 | . 178 131 . 1001 36 Core 231 | . 34 17 . 180 . Absorbed by Shields . | . . . . . . Core Remaining (%) 53 | 100 . . . 7 . Volleys Fired 70 | 2 20 7 . 41 . Largest 2 | 2 2 2 . 2 . Hottest 76 | 60 76 76 . 76 . Shots Fired 134 | 4 40 13 . 77 . Gun 134 | 4 40 13 . 77 . Cannon . | . . . . . . Launcher . | . . . . . . Special . | . . . . . . Kinetic 79 | 2 20 6 . 51 . Thermal 31 | . 14 7 . 10 . Explosive . | . . . . . . Electromagnetic 24 | 2 6 . . 16 . Robot Hit Streak 17 | 3 9 4 . 17 . Robot Miss Streak 3 | 1 2 2 . 3 . Penetration Max . | . . . . . . Secondary Targets 5 | . . 1 . 4 . Max Gunslinging Chain 1 | . . 1 . 1 . Shots Hit Robots 95 | 3 30 8 . 54 . Core Hits 37 | 1 8 3 . 25 . Critical Hits 2 | . . . . 2 . Critical Kills 1 | . . . . 1 . Critical Parts Destroyed 1 | . . . . 1 . Melee Attacks . | . . . . . . Impact . | . . . . . . Slashing . | . . . . . . Piercing . | . . . . . . Sneak Attacks . | . . . . . . Combat Hostiles . | . . . . . . Follow-up Attacks . | . . . . . . Damage Inflicted 1450 | 40 459 151 . 800 . Guns 1421 | 40 454 151 . 776 . Cannons . | . . . . . . Explosions . | . . . . . . Melee . | . . . . . . Ramming 29 | . 5 . . 24 . Kinetic 706 | 10 185 43 . 468 . Thermal 402 | . 192 108 . 102 . Explosive . | . . . . . . Electromagnetic 313 | 30 77 . . 206 . Impact . | . . . . . . Slashing . | . . . . . . Piercing . | . . . . . . Highest Corruption . | . . . . . . Average Corruption . | . . . . . . Corruption Purged . | . . . . . . Overload Shots . | . . . . . . Overflow Damage . | . . . . . . Projectiles . | . . . . . . Explosions . | . . . . . . Melee . | . . . . . . Knockbacks 1 | . . . . 1 . Impact 1 | . . . . 1 . Kinetic . | . . . . . . Secondary . | . . . . . . Self-Inflicted Damage . | . . . . . . Shots . | . . . . . . Rammed 3 | . 1 . . 2 . Targets Rammed 3 | . 1 . . 2 . Kicked . | . . . . . . Crushed . | . . . . . . Highest Temperature 234 | . 234 86 . 66 . Average Temperature 50 | . 94 42 . 21 . Received Heat Transfer 303 | . 96 . . 207 . Siege Activations . | . . . . . . Robots Corrupted . | . . . . . . Combat Hostiles . | . . . . . . Parts Fried 2 | . 1 . . 1 . Impact Corruptions . | . . . . . . Robots Melted . | . . . . . . Combat Hostiles . | . . . . . . Parts Melted 1 | . 1 . . . . Heat Transferred 999 | . 481 259 . 259 . Parts Sabotaged . | . . . . . . Parts Stolen . | . . . . . . Parts Stripped . | . . . . . . Power Chain Reactions . | . . . . . . Missiles Intercepted . | . . . . . . Alert | -11 -10 -10 -10 -9 -8 ------- Run | Scr Mat Min Exi Min Mat Peak Influence 135 | 5 110 75 . 135 . Initial 3 | . 3 . . . . Average 32 | 4 36 27 . 34 . Maximum Alert Level . | . . . . . . Low Security (%) 100 | 100 100 100 . 100 100 Level 1 . | . . . . . . Level 2 . | . . . . . . Level 3 . | . . . . . . Level 4 . | . . . . . . Level 5 . | . . . . . . High Security . | . . . . . . Max Security . | . . . . . . Squads Dispatched 5 | . 3 . . . 2 Investigation 2 | . 2 . . . . Extermination . | . . . . . . Reinforcement 2 | . 1 . . . 1 Assault . | . . . . . . Garrison 1 | . . . . . 1 Intercept . | . . . . . . Construction Impeded . | . . . . . . Haulers Reinforced . | . . . . . . Stealth | -11 -10 -10 -10 -9 -8 --------- Run | Scr Mat Min Exi Min Mat Distress Signals 2 | . 1 . . . 1 Communications Jammed . | . . . . . . Distress Signals . | . . . . . . Times Spotted 43 | . 8 3 . 29 3 Peak Tracking Total 8 | . 2 3 . 8 6 Tactical Retreats 4 | . . . . 4 . Traps | -11 -10 -10 -10 -9 -8 ------- Run | Scr Mat Min Exi Min Mat Traps Triggered 2 | . 2 . . . . Indirectly . | . . . . . . Trap Hack Attempts 36 | . 36 . . . . Triggered . | . . . . . . Disarmed 5 | . 5 . . . . Reprogrammed . | . . . . . . Reused . | . . . . . . Traps Extracted . | . . . . . . Installed . | . . . . . . Triggered . | . . . . . . Exploded 2 | . . . 2 . . Machines | -11 -10 -10 -10 -9 -8 ---------- Run | Scr Mat Min Exi Min Mat Machines Disabled . | . . . . . . Max in Single Turn . | . . . . . . Machines Sabotaged . | . . . . . . Garrisons Compromised . | . . . . . . Overloaded Fab Kills . | . . . . . . Fab Network Shutdowns . | . . . . . . Hacking | -11 -10 -10 -10 -9 -8 --------- Run | Scr Mat Min Exi Min Mat Machines Accessed 8 | . 5 . 2 1 . Terminals 5 | . 4 . . 1 . Fabricators . | . . . . . . Repair Stations . | . . . . . . Recycling Units 1 | . 1 . . . . Scanalyzers . | . . . . . . Garrison Access . | . . . . . . Total Hacks 23 | . 17 . 2 4 . Successful 13 | . 8 . 2 3 . Failed 9 | . 8 . . 1 . Catastrophic . | . . . . . . Database Lockouts 1 | . 1 . . . . Manual 17 | . 13 . 1 3 . Terminals 20 | . 16 . . 4 . Fabricators . | . . . . . . Repair Stations . | . . . . . . Recycling Units 1 | . 1 . . . . Scanalyzers . | . . . . . . Garrison Access . | . . . . . . Terminal Hacks 8 | . 4 . 2 2 . Record 1 | . . . 1 . . Part Schematic 1 | . . . . 1 . Robot Analysis 3 | . 3 . . . . Emergency Access Points 1 | . 1 . . . . Zone Layout 1 | . . . . 1 . EX-Prototype ID Bank 1 | . . . 1 . . Fabricator Hacks . | . . . . . . Repair Station Hacks . | . . . . . . Recycling Unit Hacks . | . . . . . . Scanalyzer . | . . . . . . Garrison Access Hacks . | . . . . . . Unauthorized Hacks 5 | . 4 . . 1 . Terminals 4 | . 3 . . 1 . Track 1 | . . . . 1 . Botnet 2 | . 2 . . . . Operators 1 | . 1 . . . . Fabricators . | . . . . . . Repair Stations . | . . . . . . Recycling Units 1 | . 1 . . . . Tunnel 1 | . 1 . . . . Scanalyzers . | . . . . . . Garrison Access . | . . . . . . Data Cores Recovered . | . . . . . . Used . | . . . . . . Hacking Detections 4 | . 3 . . 1 . Full Trace Events . | . . . . . . Feedback Events . | . . . . . . Feedback Blocked . | . . . . . . Robot Schematics Acquired . | . . . . . . Robots Built . | . . . . . . Matter . | . . . . . . Time . | . . . . . . Total Robot Build Rating . | . . . . . . Part Schematics Acquired 1 | . . . . 1 . Parts Built . | . . . . . . Matter . | . . . . . . Time . | . . . . . . Total Part Build Rating . | . . . . . . Parts Repaired . | . . . . . . Time . | . . . . . . Parts Recycled . | . . . . . . Recycled Matter . | . . . . . . Retrieved Matter . | . . . . . . Retrieved Components . | . . . . . . Parts Scanalyzed . | . . . . . . Part Schematics Acquired . | . . . . . . Parts Damaged . | . . . . . . Bothacking | -11 -10 -10 -10 -9 -8 ------------ Run | Scr Mat Min Exi Min Mat Used RIF Installer . | . . . . . . Robots Hacked . | . . . . . . Non-combat . | . . . . . . Combat . | . . . . . . Robot Hacks Applied . | . . . . . . Relay Couplers Released . | . . . . . . Robots Rewired . | . . . . . . Allies Hacked . | . . . . . . Hacks Repelled . | . . . . . . Allies | -11 -10 -10 -10 -9 -8 -------- Run | Scr Mat Min Exi Min Mat Total Allies 3 | . . . . 3 . Largest Group 3 | . . . . 3 3 Highest-Rated Group 40 | . . . . 40 40 Highest-Rated Ally 16 | . . . . 16 16 Total Orders . | . . . . . . Ally Attacks 39 | . . . . 32 7 Total Damage 389 | . . . . 310 79 Kills 8 | . . . . 8 . Allies Corrupted . | . . . . . . Allies Melted . | . . . . . . Intel | -11 -10 -10 -10 -9 -8 ------- Run | Scr Mat Min Exi Min Mat Robot Analysis Total 3 | . 3 . . . . Derelict Logs Recovered 2 | . . 1 . 1 . Drone Launches . | . . . . . . Drone Recoveries . | . . . . . . Exploration | -11 -10 -10 -10 -9 -8 ------------- Run | Scr Mat Min Exi Min Mat Turns Passed 4412 | 33 1317 1050 704 1263 45 Spaces Moved 2024 | 17 536 554 390 513 14 Core . | . . . . . . Treads 1753 | 8 536 554 390 265 . Legs 271 | 9 . . . 248 14 Wheels . | . . . . . . Hover . | . . . . . . Flight . | . . . . . . Fastest Speed 120 | 120 160 180 180 180 180 Average Speed 177 | 138 166 180 180 188 180 Slowest Speed 220 | 160 180 180 180 220 180 Overloaded Moves . | . . . . . . Propulsion Burnouts . | . . . . . . Robots Hopped . | . . . . . . Cave-ins Triggered . | . . . . . . Exploration Rate (%) 57 | 2 64 99 78 95 4 Regions Visited 5 Branch Regions 3 Pre-discovered Areas 2 | . 1 . 1 . . Known Exits Taken . | . . . . . . Unknown Exits Taken 5 | 1 1 1 1 1 . Scrap Searched 3 | . . 1 . 2 . Spaces Dug . | . . . . . . Terrain Destroyed . | . . . . . . Melee . | . . . . . . Projectile . | . . . . . . AOE . | . . . . . . Terrain Rammed . | . . . . . . Walls Destroyed . | . . . . . . Machines Disabled . | . . . . . . Actions | -11 -10 -10 -10 -9 -8 --------- Run | Scr Mat Min Exi Min Mat Total 2696 | 21 919 594 393 736 33 Wait 507 | . 305 32 . 155 15 Move 2019 | 16 535 553 389 512 14 Hop . | . . . . . . Pick Up 22 | . 8 1 2 11 . Fast Attach 4 | 1 2 . . 1 . Attach 11 | . . 1 . 6 4 Detach . | . . . . . . Swap 14 | 2 9 . . 3 . Drop 10 | . 3 . 2 5 . Fire 70 | 2 20 7 . 41 . Melee . | . . . . . . Ram . | . . . . . . Kick . | . . . . . . Crush 3 | . 1 . . 2 . Escape Stasis . | . . . . . . Rewire . | . . . . . . Trap 36 | . 36 . . . . Miscellaneous . | . . . . . . Route ------- -11/Scrapyard -10/Materials (discovered 3 exits: [*Mat x2] / [*Min]) -10/Mines (discovered 3 exits: [*Mat x2] / *Exi) -10/Exiles -9/Mines (discovered 2 exits: [*Mat x2]) -8/Materials (discovered 1 exit: Fac) History --------- Turn | Location | Event 7 | -11/Scrapyard | Discovered new exit (range 3) 34 | -11/Scrapyard | Entered Materials 317 | -10/Materials | Build established: Mutant 476 | -10/Materials | Central database locked down 748 | -10/Materials | Discovered new exit (range 8) 1064 | -10/Materials | Discovered new exit (range 16) 1201 | -10/Materials | Discovered new exit (range 16) 1351 | -10/Materials | Entered Mines 1414 | -10/Mines | Learned Materials trap positions 1418 | -10/Mines | Build established: Hauler-Mutant 1516 | -10/Mines | Deemed a non-threat by the Exiles lab entrance 1579 | -10/Mines | Discovered new exit (range 5) 1861 | -10/Mines | Discovered new exit (range 3) 2390 | -10/Mines | Discovered new exit (range 5) 2401 | -10/Mines | Entered Exiles 2445 | -10/Exiles | Met 8R-AWN 2473 | -10/Exiles | Met EX-HEX 2569 | -10/Exiles | Met EX-DEC 2608 | -10/Exiles | Visited The Gauntlet 2702 | -10/Exiles | Learned location of Zion (-7) 2825 | -10/Exiles | Met EX-BIN 2847 | -10/Exiles | Aligned with FarCom system 2849 | -10/Exiles | Given EX-Vault access code 2894 | -10/Exiles | Opened EX-Vault 2908 | -10/Exiles | Found Flying Fortress v7 2931 | -10/Exiles | Found Superbattery 2968 | -10/Exiles | Warned to stay clear of 0b10 Research branches 2969 | -10/Exiles | Exiles lab attacked by MAIN.C 3081 | -10/Exiles | Discovered new exit (range 14) 3105 | -10/Exiles | Stole two prototypes: Flying Fortress v7, Superbattery 3105 | -10/Exiles | Entered Mines 3109 | -9/Mines | Met a Derelict bent on vengeance 3320 | -9/Mines | Discovered new exit (range 16) 3768 | -9/Mines | Assembled infested the area 3773 | -9/Mines | Assisted by a Guerilla fighting off Assembled 3832 | -9/Mines | Core integrity fell below 50% 3868 | -9/Mines | Lost 6 parts (1p2n3w) 3870 | -9/Mines | Core integrity fell below 20% 3955 | -9/Mines | Assisted by bots powering up and referring to "LRC-V3" 4359 | -9/Mines | Discovered new exit (range 5) 4368 | -9/Mines | Entered Materials 4368 | -8/Materials | Accompanied by 3 allies 4368 | -8/Materials | Evolved 4 slots: Propulsion x1, Utility x3 4369 | -8/Materials | Identified exit to Factory 4370 | -8/Materials | Loaded intel: 16 trap records 4408 | -8/Materials | Garrison activated, responded to threat 4413 | -8/Materials | Self-destructed Last Messages --------------- 04172_ U-05 Engineer lays Concrete. 04174_ Acquired Aluminum Leg. 04177_ U-05 Engineer lays Concrete. 04277_ as-70151 destroyed. 04278_ Destroyed Asb. F-torch. 04309_ as-86033 destroyed. 04359_ EXIT=FOUND PARAMETERS=PROPULSION_1,UTILITY_3 LOCATION=UNKNOWN GOAL=ESCAPE 04368_ Receiving FarCom transmissions... Loading 1 Factory entrance... Loading Materials trap records (x16)... 04402_ O-16 Technician: "IFF HANDSHAKE FAILED. SECURING TERMINAL." 04405_ ALERT: Hostiles spotted, dispatching reinforcements to Terminal M002. 04407_ Slug penetrates Mercenary 2a. 04407_ Mercenary 2a destroyed. 04408_ ALERT: Activating Garrison Access M001. 04412_ Slug penetrates Trooper 2a. Map ----- +----------------------------------------------------+ | | | | | | | | | ?????????????????????????????????????????????????? | | ?????????????????????????????????????????????????? | | ?????????????????????????????????????????????????? | | ?????????????????????????????????????????????????? | | ?????????????????????????????????s???????????????? | | ?????????????????????????????????????????????????? | | ??????????????????????????????????????s??????????? | | ???????????????????????????????????????s?????????? | | ?????????????????????????????????????????????????? | | ?????????????????????????????????????????????????? | | ?????????????????????????????????????????????????? | | ?????????????????????????????????????????????????? | | ????????????????#####????????????????????????????? | | ????????????????# #????????????????????????????? | | ????????????????# #????????????????????????????? | | ?????????#??????# #????????????????????????????? | | ???????### #### #????????????????????????????? | | ???? ###################+?????????? | | ???? g Y ???????? | | ???? =%gw ???????? | | ?????#################### """ ]Y ???????? | | ????????????????????????#@ """"" ]=h ????????? | | ????????????????????????# """""???????????????? | | ????????????????????????# / """""???????????????? | | ????????????????????????+ """ ???????????????? | | ????????????????????????# ????????????????? | | ???????????Y????????????# ???????????????? | | ????????????????????????# ####??????????????? | | ????????????????????????# #?????????????????? | | ????????????????????????# #?????????????????? | | ?????????????????h?????? #?????????????????? | | ????????????????????????########?????????????????? | | ?????????????????????????????????????????????????? | | ?????????????????????????????????????????????????? | | ?????????????????????????????????????????????????? | | ?????????????????????????????????????????????????? | | ?????????????????????????????o???????????????????? | | ?????????????????????????????????????????????????? | | ?????????????????????????????????????????????????? | | ?????????????????????????s???????????????????????? | | ?????????????????????????s?s?????????????????????? | | ?????????????????????????s???????????????????????? | | ?????????????????????????????????????????????????? | | ?????????????????????????????????????????????????? | | ?????????????????????????????????????????????????? | | ?????????????????????????????????????????????????? | +----------------------------------------------------+ Best States ------------- Heat Dissipation 31 Energy Generation 10 Energy Capacity 250 Matter Stores 300 Matter Capacity 300 Sight Range 16 Terrain Scan Density 10 Utility Shielding 33 Evasion (%) 40 Recoil Reduction 2 Item Schematics ----------------- Imp. Signal Interpreter | -9/Mines | Hacked Robot Schematics ------------------ None Fabricated ------------ Nothing Alien Tech Used ----------------- None Achievements -------------- None Challenges ------------ None Game ------ Seed FlyingDimensionalLaser Manual? 0 Play Time 00:17:38 Cumulative 167.6 hours Start 2021.01.09 @ 15:34:05 End 2021.01.09 @ 15:51:07 Sessions 1 Manual Loads 0 Difficulty Rogue Special Mode None Game No. 127 Rogue 127 Adventurer 0 Explorer 0 Win Type - Total 3 Types 3/0/0/0/0/0/0/0/0 Lore% 44 Gallery% 59 Achievement% 44 Wizard Run 0 Options --------- ASCII 1 Keyboard 1 Movement Arrows Keybinds 0 Fullscreen 1 Font 24/Proggy Map View 76x50 Tactical HUD 1 Map Filters NONE Filters NONE Steam 1 RUN: 4a5ee885-9cc1-4569-b003-4d000cb1170d